bitfinex/quotes_SOLUSD_20260120
["timestamp","ask_amount","ask_price","bid_price","bid_amount"]
[1768913465280,9.18858757,129.41,129.39,59.03078257]
[1768913465488,3.99041246,129.41,129.39,59.03078257]
[1768913466793,11.71782327,129.41,129.39,59.00078258]
[1768913467776,3.99083071,129.4,129.37,0.82596947]
[1768913470102,3.74272841,129.4,129.37,0.82596947]
[1768913470280,0.31853817,129.4,129.37,0.82596947]
[1768913471703,0.31853817,129.4,129.37,62.32596947]
[1768913472305,0.31853817,129.4,129.38,0.82596947]
[1768913474815,3.99083071,129.4,129.38,0.82596947]
[1768913475489,3.99083071,129.4,129.37,62.32596947]
[1768913476614,3.99083071,129.4,129.38,0.82596947]
[1768913476798,3.99083071,129.4,129.37,62.32596947]
[1768913481710,3.99083071,129.4,129.38,0.82596947]
[1768913481711,3.67229254,129.4,129.38,0.82596947]
[1768913482411,3.99332504,129.4,129.38,0.82596947]
[1768913482614,3.99332504,129.4,129.37,62.32596947]
[1768913483312,3.99332504,129.4,129.37,0.82596947]
[1768913488211,5.9565132,129.38,129.37,0.82596947]
[1768913488518,3.67229254,129.39,129.37,0.82596947]
[1768913488703,9.94983824,129.4,129.37,0.82596947]
[1768913489098,9.94983824,129.4,129.37,62.32596947]
[1768913490112,9.94983824,129.4,129.35,11.40322346]
[1768913490113,3.99462687,129.38,129.35,0.81056875]
[1768913490320,3.99462687,129.37,129.33,0.81056875]
[1768913490795,0.32233433,129.36,129.33,0.81056875]
[1768913491002,3.99476333,129.35,129.33,0.81056875]
[1768913491200,3.99476333,129.35,129.32,0.81056875]
[1768913493216,0.32273904,129.34,129.3,0.81056875]
[1768913493522,3.67229254,129.33,129.3,0.81056875]
[1768913493728,3.99503158,129.33,129.3,0.81056875]
[1768913493931,3.67229254,129.32,129.3,0.81056875]
[1768913494105,3.99503158,129.33,129.3,0.81056875]
[1768913495008,3.99503158,129.33,129.3,0.75448271]
[1768913495727,3.67229254,129.33,129.3,0.75448271]
[1768913496903,4.05150856,129.33,129.3,0.75448271]
[1768913497112,3.67229254,129.32,129.3,0.75448271]
[1768913497630,3.67229254,129.32,129.28,7.73484223]
[1768913497631,4.05163589,129.32,129.29,0.81056875]
[1768913498206,3.67229254,129.31,129.29,0.81056875]
[1768913499815,4.05163589,129.32,129.29,0.74870198]
[1768913500627,3.67229254,129.31,129.29,0.74870198]
[1768913503618,4.05163589,129.32,129.29,0.74870198]
[1768913504035,0.44233586,129.31,129.27,49.98554413]
[1768913505442,4.4562065,129.32,129.27,49.98554413]
[1768913505627,0.78391396,129.31,129.27,49.98554413]
[1768913505939,4.4562065,129.31,129.27,42.25]
[1768913506238,4.4562065,129.31,129.28,0.83136147]
[1768913506438,3.67229254,129.31,129.28,0.83136147]
[1768913506823,4.4562065,129.32,129.28,0.83136147]
[1768913507026,6.12800252,129.35,129.31,0.83136147]
[1768913507232,4.4562065,129.36,129.32,0.83136147]
[1768913507536,3.67229254,129.38,129.34,0.83136147]
[1768913507721,12.18522272,129.39,129.34,0.83136147]
[1768913508526,3.67229254,129.38,129.34,0.83136147]
[1768913510936,3.67534608,129.38,129.34,0.83136147]
[1768913512634,3.67534608,129.38,129.35,0.83136147]
[1768913513137,12.18827626,129.39,129.35,0.83136147]
[1768913513337,8.51293018,129.39,129.35,0.83136147]
[1768913513536,12.18827626,129.39,129.35,0.83136147]
[1768913518355,0.87761842,129.38,129.35,62.33136147]
[1768913519351,0.87761842,129.38,129.36,0.87171906]
[1768913519533,0.87761842,129.38,129.35,61.5]
[1768913519854,0.87761842,129.38,129.35,65.17534608]
[1768913520049,8.60663464,129.39,129.35,65.17534608]
[1768913521457,8.60663464,129.39,129.36,0.87171906]
[1768913524263,8.60663464,129.39,129.36,62.37171906]
[1768913525553,5.9565132,129.38,129.36,62.37171906]
[1768913526260,0.87761842,129.4,129.37,3.67534608]
[1768913526444,0.87761842,129.4,129.37,61.5]
[1768913526639,0.87761842,129.4,129.37,65.17534608]
[1768913528149,0.87761842,129.4,129.37,61.5]
[1768913528456,5.9565132,129.39,129.37,61.5]
[1768913530854,5.9565132,129.39,129.37,61.53522229]
[1768913533470,5.9565132,129.39,129.37,65.21056837]
[1768913536480,8.60561462,129.4,129.37,61.53522229]
[1768913537075,8.60561462,129.4,129.37,65.21056837]
[1768913537458,0.87761842,129.4,129.37,65.21056837]
[1768913538685,0.87761842,129.38,129.37,42.25]
[1768913538868,0.87761842,129.38,129.37,42.19]
[1768913539989,0.87761842,129.38,129.37,39.43812871]
[1768913540177,0.87761842,129.38,129.37,36.68611348]
[1768913541877,0.87761842,129.38,129.35,40.45681685]
[1768913542984,0.87761842,129.38,129.35,36.78147077]
[1768913544082,0.93762944,129.36,129.35,36.68611348]
[1768913544384,0.93762944,129.36,129.35,36.65611348]
[1768913544573,0.93762944,129.36,129.35,36.62611348]
[1768913545989,0.93762944,129.36,129.35,33.48010242]
[1768913546376,0.93762944,129.37,129.35,33.48010242]
[1768913548190,0.93762944,129.37,129.35,31.86855838]
[1768913548371,0.93762944,129.37,129.35,30.33409135]
[1768913550570,0.93762944,129.38,129.35,30.51484741]
[1768913550879,0.93762944,129.37,129.35,30.33409135]
[1768913553186,6.14769386,129.37,129.35,30.33409135]
[1768913553498,11.40455281,129.38,129.35,30.33409135]
[1768913553499,3.67534608,129.38,129.35,30.33409135]
[1768913554711,11.40484928,129.38,129.35,30.33409135]
[1768913555404,0.93762944,129.37,129.35,30.33409135]
[1768913557806,0.93762944,129.37,129.35,28.72238274]
[1768913565476,6.14702607,129.37,129.35,28.72238274]
[1768913569704,6.14702607,129.37,129.35,28.69238274]
[1768913572611,6.14702607,129.37,129.35,29.68487641]
[1768913574305,5.20939663,129.37,129.36,1.03435258]
[1768913574507,5.20939663,129.37,129.36,1.00435258]
[1768913575310,5.20939663,129.37,129.35,28.69238274]
[1768913576411,5.20939663,129.37,129.35,29.72673532]
[1768913576617,1.02137931,129.38,129.35,29.72673532]
[1768913576906,6.23144508,129.38,129.35,29.72673532]
[1768913577103,5.21051192,129.37,129.35,29.72673532]
[1768913579717,1.02137931,129.36,129.35,28.69238274]
[1768913580296,9.90987132,129.36,129.33,1.03435258]
[1768913580496,1.02137931,129.35,129.33,1.03435258]
[1768913580908,3.67528504,129.35,129.33,61.5]
[1768913581109,1.02137931,129.34,129.31,62.53435258]
[1768913582797,6.23679664,129.34,129.31,62.53435258]
[1768913582997,1.02137931,129.34,129.31,62.53435258]
[1768913583898,11.40644642,129.35,129.32,1.03435258]
[1768913584096,12.42782573,129.35,129.32,1.03435258]
[1768913585502,8.75254069,129.35,129.32,1.03435258]
[1768913585706,12.42782573,129.35,129.32,1.03435258]
[1768913586112,4.69666435,129.35,129.32,1.03435258]
[1768913586920,12.42766798,129.35,129.32,1.03435258]
[1768913587221,1.02137931,129.34,129.31,62.53435258]
[1768913588417,4.69666435,129.34,129.31,62.53435258]
[1768913589000,4.69666435,129.34,129.32,1.03435258]
[1768913589316,1.02137931,129.34,129.32,1.03435258]
[1768913589822,4.69666435,129.34,129.31,62.53435258]
[1768913592617,1.02137931,129.31,129.29,1.03435258]
[1768913592922,4.69666435,129.3,129.25,7.73647304]
[1768913593091,3.67528504,129.29,129.25,7.73647304]
[1768913593296,4.69666435,129.3,129.25,7.73647304]
[1768913593497,4.69666435,129.3,129.26,7.73630143]
[1768913593806,3.67528504,129.29,129.26,7.73630143]
[1768913594309,4.69666435,129.3,129.26,7.73630143]
[1768913594818,4.69666435,129.3,129.27,0.30216485]
[1768913595322,1.02137931,129.31,129.27,0.30216485]
[1768913595702,1.02137931,129.3,129.27,0.30216485]
[1768913596699,4.69666435,129.3,129.27,0.30216485]
[1768913601523,4.69666435,129.31,129.27,0.30216485]
[1768913603002,1.02137931,129.3,129.27,0.30216485]
[1768913603207,0.96137927,129.3,129.27,0.30216485]
[1768913603518,4.63666431,129.3,129.27,61.80216485]
[1768913604224,0.96137927,129.3,129.27,61.80216485]
[1768913604426,4.63666431,129.3,129.27,61.80216485]
[1768913606131,4.5766643,129.3,129.27,61.80216485]
[1768913608435,18.06033826,129.32,129.28,0.48330077]
[1768913608751,3.67528504,129.31,129.29,0.48330077]
[1768913609229,4.7956233,129.31,129.28,61.5]
[1768913609408,4.7956233,129.31,129.28,61.98717679]
[1768913612924,1.12033826,129.31,129.28,61.98717679]
[1768913613128,4.7956233,129.31,129.28,61.98717679]
[1768913613431,3.67528504,129.31,129.29,0.50227084]
[1768913613825,3.61528505,129.31,129.29,0.50227084]
[1768913615021,4.73562331,129.31,129.28,62.00957517]
[1768913623941,3.67528504,129.32,129.29,0.54366931]
[1768913624333,4.84426095,129.32,129.29,0.54366931]
[1768913628248,1.16897591,129.32,129.29,0.54366931]
[1768913628545,10.05211955,129.32,129.29,0.54366931]
[1768913628851,4.84426095,129.32,129.29,0.54366931]
[1768913629255,3.67528504,129.32,129.29,0.54366931]
[1768913629554,1.16897591,129.31,129.29,0.54366931]
[1768913629849,1.16897591,129.31,129.29,62.04366931]
[1768913630046,1.16897591,129.31,129.29,61.5]
[1768913631045,1.10897592,129.31,129.29,61.5]
[1768913631751,1.10897592,129.31,129.29,62.12529691]
[1768913632268,11.40807435,129.32,129.29,62.12529691]
[1768913632446,3.67528504,129.32,129.29,62.12529691]
[1768913633029,3.67915002,129.32,129.29,62.12529691]
[1768913633352,4.78655402,129.32,129.29,62.12529691]
[1768913633539,1.107404,129.33,129.3,0.63404372]
[1768913633740,6.31922337,129.33,129.3,0.63404372]
[1768913633944,1.107404,129.33,129.3,0.63404372]
[1768913634640,6.31895173,129.33,129.3,0.63404372]
[1768913635441,9.99810175,129.33,129.3,0.63404372]
[1768913635756,1.107404,129.33,129.3,62.13404372]
[1768913635955,9.99994462,129.33,129.3,62.13404372]
[1768913636142,4.78655402,129.33,129.3,62.13404372]
[1768913637761,36.26711593,129.36,129.3,62.13404372]
[1768913637762,12.51783732,129.35,129.31,0.64516111]
[1768913638060,5.21538212,129.34,129.32,0.64779899]
[1768913638438,18.047404,129.36,129.32,0.64779899]
[1768913638801,5.21474582,129.35,129.32,0.64779899]
[1768913638931,5.21474582,129.34,129.33,0.65040657]
[1768913639130,5.21474582,129.35,129.33,0.65040657]
[1768913639356,5.21474582,129.34,129.33,0.65040657]
[1768913639644,1.107404,129.36,129.33,0.65040657]
[1768913639953,6.32088218,129.36,129.33,0.65040657]
[1768913640947,5.21347818,129.35,129.33,0.65040657]
[1768913641141,1.107404,129.36,129.33,0.65040657]
[1768913641346,6.320959,129.36,129.33,0.65040657]
[1768913642158,1.107404,129.35,129.32,0.65805098]
[1768913642355,6.320959,129.35,129.32,0.65805098]
[1768913643467,6.320959,129.35,129.32,62.15805098]
[1768913643667,1.107404,129.35,129.32,62.15805098]
[1768913644186,6.31714131,129.35,129.32,62.15805098]
[1768913644369,1.107404,129.35,129.32,62.15805098]
[1768913644572,1.107404,129.36,129.33,0.66300204]
[1768913644880,6.31630382,129.36,129.33,0.66300204]
[1768913653168,6.31630382,129.36,129.33,62.16300204]
[1768913658301,5.20889982,129.36,129.34,0.69463371]
[1768913658598,5.20889982,129.36,129.34,62.19463371]
[1768913660211,5.20889982,129.36,129.34,65.87378373]
[1768913660499,1.107404,129.37,129.34,65.87789923]
[1768913660692,6.31063998,129.38,129.35,4.37789923]
[1768913661002,6.31063998,129.38,129.35,65.87789923]
[1768913662303,1.107404,129.38,129.35,65.87789923]
[1768913662605,1.107404,129.38,129.35,62.19874921]
[1768913668911,1.107404,129.38,129.35,73.6087709]
[1768913669096,1.21632414,129.4,129.37,0.71795897]
[1768913669411,1.21632414,129.4,129.37,61.5]
[1768913672307,1.21632414,129.4,129.36,3.67915002]
[1768913672495,24.76149546,129.42,129.39,3.67915002]
[1768913672496,0.1,129.42,129.39,3.67915002]
[1768913672702,0.1,129.42,129.4,3.67915002]
[1768913672925,1.31632414,129.42,129.39,3.67915002]
[1768913673290,1.21632414,129.41,129.37,11.40887159]
[1768913673491,1.21632414,129.41,129.37,28.34887159]
[1768913677113,1.21632414,129.41,129.38,3.67915002]
[1768913677922,1.21632414,129.41,129.38,3.70228392]
[1768913679221,1.21632414,129.41,129.38,61.5]
[1768913679222,1.21632414,129.4,129.38,61.5]
[1768913679720,1.21632414,129.39,129.38,60.22639587]
[1768913679922,1.21632414,129.38,129.35,58.97940582]
[1768913681133,1.21632414,129.39,129.36,1.18618641]
[1768913681301,1.21632414,129.39,129.36,4.86533643]
[1768913682223,1.21632414,129.39,129.36,1.18618641]
[1768913684423,1.19223024,129.38,129.35,60.22006951]
[1768913684614,4.87138026,129.38,129.35,60.22006951]
[1768913685306,1.19223024,129.37,129.35,60.22006951]
[1768913686226,3.67915002,129.38,129.35,60.22006951]
[1768913686406,1.19223024,129.38,129.35,60.22006951]
[1768913690123,4.87138026,129.38,129.35,60.22006951]
[1768913693221,1.19223024,129.38,129.35,60.22006951]
[1768913693822,1.19223024,129.38,129.36,1.29089626]
[1768913695030,4.86737242,129.38,129.36,1.29089626]
[1768913697316,4.86737242,129.38,129.36,60.243688]
[1768913697515,9.0132299,129.4,129.37,1.29089626]
[1768913697826,1.28512095,129.39,129.37,60.243688]
[1768913707811,1.28512095,129.41,129.38,1.29089626]
[1768913708131,1.28512095,129.41,129.37,62.62793392]
[1768913708336,6.49153636,129.41,129.37,62.62793392]
[1768913708538,1.28512095,129.41,129.37,62.62793392]
[1768913709038,1.28512095,129.41,129.37,3.67514218]
[1768913709627,1.28512095,129.41,129.37,11.40475275]
[1768913709830,6.4907544,129.41,129.37,11.40475275]
[1768913710025,0.1,129.42,129.41,1.29089626]
[1768913710430,0.1,129.42,129.4,1.29089626]
[1768913714040,0.1,129.42,129.4,4.96603844]
[1768913714446,0.1,129.42,129.41,1.29089626]
[1768913715743,0.1,129.42,129.4,1.29089626]
[1768913717732,0.1,129.42,129.4,62.79089626]
[1768913719335,1.38512095,129.42,129.4,61.5]
[1768913719553,1.28512095,129.41,129.4,60.09931261]
[1768913719855,1.28512095,129.41,129.4,55.6314075]
[1768913721040,1.28512095,129.41,129.4,52.90921047]
[1768913721248,9.01249905,129.41,129.4,52.90921047]
[1768913723249,1.28512095,129.41,129.4,52.90921047]
[1768913723559,1.28512095,129.41,129.38,52.12998821]
[1768913723929,11.53099694,129.42,129.39,1.35545043]
[1768913724538,0.0381439,129.41,129.38,52.19454238]
[1768913724746,11.54036832,129.42,129.39,1.35545043]
[1768913727666,0.05511568,129.41,129.38,52.19454238]
[1768913727947,0.05804964,129.4,129.37,52.19454238]
[1768913728948,11.46378053,129.41,129.38,1.35545043]
[1768913730360,7.78863835,129.41,129.38,1.35545043]
[1768913739472,0.1,129.42,129.39,1.35545043]
[1768913740859,5.30060685,129.42,129.39,1.35545043]
[1768913744175,5.30060685,129.42,129.4,1.41339433]
[1768913750382,13.0274329,129.42,129.4,1.41339433]
[1768913750677,7.82682605,129.42,129.4,1.41339433]
[1768913755177,5.20756388,129.41,129.4,1.41339433]
[1768913755382,7.82682605,129.42,129.4,1.41339433]
[1768913758686,7.82682605,129.42,129.37,28.34221679]
[1768913758687,0.13608449,129.41,129.38,1.44284818]
[1768913758984,5.34523751,129.41,129.38,1.44284818]
[1768913760585,9.01799743,129.41,129.38,1.44284818]
[1768913760793,8.88191294,129.4,129.38,1.44284818]
[1768913760979,3.67275992,129.4,129.38,1.44284818]
[1768913762500,11.40093292,129.4,129.38,1.44284818]
[1768913766198,3.67275992,129.4,129.38,1.44284818]
[1768913771611,7.86368244,129.41,129.38,1.44284818]
[1768913771811,8.88633583,129.4,129.38,1.44284818]
[1768913772011,3.67275992,129.4,129.38,1.44284818]
[1768913776188,7.86368244,129.41,129.38,1.44284818]
[1768913776389,3.67275992,129.4,129.38,1.44284818]
[1768913778611,11.53644236,129.41,129.38,1.44284818]
[1768913778815,11.53637463,129.41,129.38,1.44284818]
[1768913779213,5.2139029,129.4,129.38,1.44284818]
[1768913780118,0.17524027,129.38,129.33,50.83909195]
[1768913780326,3.67275992,129.35,129.33,1.44284818]
[1768913780695,5.65006196,129.34,129.33,1.44284818]
[1768913783222,3.67275992,129.35,129.33,1.44284818]
[1768913787823,3.67275992,129.34,129.33,1.44284818]
[1768913788518,3.67275992,129.34,129.32,1.38442738]
[1768913788711,3.67275992,129.33,129.32,1.38442738]
[1768913789017,3.67275992,129.34,129.32,1.38442738]
[1768913801336,16.94,129.37,129.32,1.38442738]
[1768913801537,5.63017056,129.36,129.33,1.38442738]
[1768913801716,3.61275987,129.36,129.33,1.38442738]
[1768913802217,3.55275978,129.36,129.33,1.38442738]
[1768913804533,17.14560841,129.37,129.33,1.38442738]
[1768913804716,9.30420355,129.36,129.33,1.38442738]
[1768913805033,3.67275992,129.36,129.33,1.38442738]
[1768913805735,3.67275992,129.36,129.34,1.50054998]
[1768913806433,3.67275992,129.35,129.33,50.83909195]
[1768913807338,3.67275992,129.36,129.33,50.83909195]
[1768913807517,5.66069818,129.35,129.33,50.83909195]
[1768913807722,3.67275992,129.36,129.33,50.83909195]
[1768913807912,5.66069661,129.35,129.33,50.83909195]
[1768913808118,3.67275992,129.36,129.33,50.83909195]
[1768913808320,5.66102593,129.35,129.33,50.83909195]
[1768913808623,5.08612221,129.36,129.33,52.33964193]
[1768913808837,5.66102436,129.35,129.33,52.33964193]
[1768913809037,5.08612221,129.36,129.33,52.33964193]
[1768913809237,5.6612582,129.35,129.33,52.33964193]
[1768913809430,5.08612221,129.36,129.33,52.33964193]
[1768913809639,5.6614318,129.35,129.33,52.33964193]
[1768913809831,5.08612221,129.36,129.33,52.33964193]
[1768913810024,5.66143337,129.35,129.33,52.33964193]
[1768913810225,5.08612221,129.36,129.33,52.33964193]
[1768913810420,5.66189081,129.35,129.33,52.33964193]
[1768913810638,5.08612221,129.36,129.33,52.33964193]
[1768913810839,5.66189238,129.35,129.33,52.33964193]
[1768913811041,5.08612221,129.36,129.33,52.33964193]
[1768913811241,5.66240626,129.35,129.33,52.33964193]
[1768913811538,5.08612221,129.36,129.33,52.33964193]
[1768913811742,5.66240469,129.35,129.33,52.33964193]
[1768913811927,5.08612221,129.36,129.33,52.33964193]
[1768913812128,5.66240626,129.35,129.33,52.33964193]
[1768913812442,5.08612221,129.36,129.33,52.33964193]
[1768913812644,5.66301478,129.35,129.33,52.33964193]
[1768913812841,5.08612221,129.36,129.33,52.33964193]
[1768913813034,5.66301635,129.35,129.33,52.33964193]
[1768913813237,5.08612221,129.36,129.33,52.33964193]
[1768913813435,5.66360155,129.35,129.33,52.33964193]
[1768913813635,5.08612221,129.36,129.33,52.33964193]
[1768913813929,5.66360155,129.35,129.33,52.33964193]
[1768913814138,5.08612221,129.36,129.33,52.33964193]
[1768913814447,5.66435135,129.35,129.33,52.33964193]
[1768913814650,3.67275992,129.36,129.34,1.3943472]
[1768913814947,5.6643432,129.35,129.34,1.3943472]
[1768913816448,5.60434321,129.35,129.34,1.3943472]
[1768913819445,5.60434321,129.35,129.34,1e-08]
[1768913820146,5.60434321,129.35,129.31,58.57214695]
[1768913820339,5.17144533,129.36,129.31,58.57214695]
[1768913821557,5.17144533,129.36,129.32,1.3943472]
[1768913823252,5.21305339,129.35,129.32,50.83909195]
[1768913823555,5.17144533,129.36,129.33,1.3943472]
[1768913823849,5.21305237,129.35,129.33,1.3943472]
[1768913824054,5.17144533,129.36,129.33,1.3943472]
[1768913824242,5.21744651,129.35,129.33,1.3943472]
[1768913824540,5.17144533,129.36,129.33,1.3943472]
[1768913824741,5.21749219,129.35,129.33,1.3943472]
[1768913824943,5.17144533,129.36,129.33,1.3943472]
[1768913825152,2.17483232,129.35,129.32,62.2477122]
[1768913825334,11.40566209,129.38,129.32,62.2477122]
[1768913825535,1.4952129,129.37,129.32,62.2477122]
[1768913826352,1.4952129,129.37,129.32,58.57147977]
[1768913826545,1.4952129,129.37,129.32,62.2477122]
[1768913827752,5.17144533,129.37,129.32,58.57147977]
[1768913827955,1.4952129,129.36,129.32,58.57147977]
[1768913828251,1.4952129,129.36,129.32,62.2477122]
[1768913828445,5.66055921,129.35,129.32,62.2477122]
[1768913828642,3.4599534,129.34,129.32,58.57147977]
[1768913828954,1.4952129,129.37,129.32,62.2477122]
[1768913829340,3.67623243,129.37,129.33,1.3943472]
[1768913831259,5.17144533,129.37,129.33,1.3943472]
[1768913832054,5.17144533,129.37,129.33,50.83909195]
[1768913832360,5.17144533,129.37,129.34,1.3943472]
[1768913836474,1.4952129,129.35,129.33,50.83909195]
[1768913836666,5.17144533,129.35,129.33,50.83909195]
[1768913838068,5.17144533,129.35,129.32,1.3943472]
[1768913839371,5.21665498,129.34,129.32,1.3943472]
[1768913839556,5.17144533,129.35,129.32,1.3943472]
[1768913839758,5.21679108,129.34,129.32,1.3943472]
[1768913840056,5.17144533,129.35,129.32,1.3943472]
[1768913840251,5.21679108,129.34,129.32,1.3943472]
[1768913840457,1.4952129,129.34,129.32,1.3943472]
[1768913840659,5.5266921,129.33,129.32,1.3943472]
[1768913842065,12.23916384,129.33,129.31,69.17343915]
[1768913842270,5.17144533,129.34,129.31,69.17343915]
[1768913842465,10.74398696,129.33,129.31,69.17343915]
[1768913842666,1.4952129,129.34,129.31,69.17343915]
[1768913842976,5.52654138,129.33,129.31,52.23343915]
[1768913843175,1.4952129,129.34,129.31,52.23343915]
[1768913843474,5.52668157,129.33,129.31,52.23343915]
[1768913843654,1.4952129,129.34,129.31,52.23343915]
[1768913843862,5.52662519,129.33,129.31,52.23343915]
[1768913844060,1.4952129,129.34,129.31,52.23343915]
[1768913844260,5.52677544,129.33,129.31,52.23343915]
[1768913844462,1.4952129,129.34,129.31,52.23343915]
[1768913844655,5.52671588,129.33,129.31,52.23343915]
[1768913844856,1.4952129,129.34,129.31,52.23343915]
[1768913845062,5.52671588,129.33,129.31,52.23343915]
[1768913845277,1.4952129,129.34,129.31,52.23343915]
[1768913845576,5.52680335,129.33,129.31,52.23343915]
[1768913845788,1.4952129,129.34,129.31,52.23343915]
[1768913845955,5.52680493,129.33,129.31,52.23343915]
[1768913846154,1.4952129,129.34,129.31,52.23343915]
[1768913846484,5.52696694,129.33,129.31,52.23343915]
[1768913846776,1.51601307,129.35,129.32,1.49831184]
[1768913846960,12.25997351,129.34,129.31,52.33802981]
[1768913847162,5.52688742,129.33,129.31,52.33802981]
[1768913847355,1.51601307,129.34,129.31,52.33802981]
[1768913847572,5.52678645,129.33,129.31,52.33802981]
[1768913847872,1.51601307,129.34,129.31,52.33802981]
[1768913848054,5.52678645,129.33,129.31,52.33802981]
[1768913848257,1.51601307,129.34,129.31,52.33802981]
[1768913848555,5.52494751,129.33,129.31,52.33802981]
[1768913848756,1.51601307,129.34,129.31,52.33802981]
[1768913849064,5.5249101,129.33,129.31,52.33802981]
[1768913849270,5.1922455,129.34,129.31,52.33802981]
[1768913849473,5.5246058,129.33,129.31,52.33802981]
[1768913849654,1.51601307,129.34,129.31,52.33802981]
[1768913849853,5.52460029,129.33,129.31,52.33802981]
[1768913850152,1.51601307,129.34,129.31,52.33802981]
[1768913850353,5.52451462,129.33,129.31,52.33802981]
[1768913850565,1.51601307,129.34,129.31,52.33802981]
[1768913850768,5.52441729,129.33,129.31,52.33802981]
[1768913850968,1.51601307,129.34,129.31,52.33802981]
[1768913851169,5.52441534,129.33,129.31,52.33802981]
[1768913851371,1.51601307,129.34,129.31,52.33802981]
[1768913851570,5.52424951,129.33,129.31,52.33802981]
[1768913851777,1.51601307,129.34,129.31,52.33802981]
[1768913851956,5.52425424,129.33,129.31,52.33802981]
[1768913852277,1.51601307,129.34,129.31,52.33802981]
[1768913852477,5.52461189,129.33,129.31,52.33802981]
[1768913852649,1.51601307,129.34,129.31,52.33802981]
[1768913852853,5.52461347,129.33,129.31,52.33802981]
[1768913853055,1.51601307,129.34,129.31,52.33802981]
[1768913853282,5.52452465,129.33,129.31,52.33802981]
[1768913853474,1.51601307,129.34,129.31,52.33802981]
[1768913853778,5.52447188,129.33,129.31,52.33802981]
[1768913853965,1.51601307,129.34,129.31,52.33802981]
[1768913854154,5.5244703,129.33,129.32,1.5031233]
[1768913854766,5.5244703,129.33,129.32,9.23587925]
[1768913855371,5.5244703,129.33,129.32,1.50369406]
[1768913855570,5.46447031,129.33,129.32,1.50369406]
[1768913855774,5.40447032,129.33,129.32,1.50369406]
[1768913856272,1.51601307,129.36,129.32,7.73275595]
[1768913858359,1.51601307,129.36,129.32,58.5718479]
[1768913860088,1.51601307,129.36,129.32,79.18808033]
[1768913860968,1.51601307,129.37,129.32,79.18808033]
[1768913861262,1.51601307,129.37,129.33,3.67623243]
[1768913862064,6.72956094,129.37,129.34,7.73156022]
[1768913862263,1.51601307,129.37,129.34,7.73156022]
[1768913862678,6.72892407,129.37,129.34,7.73156022]
[1768913862877,1.51601307,129.37,129.34,7.73156022]
[1768913863285,6.72892407,129.37,129.34,7.73156022]
[1768913863489,1.51601307,129.37,129.34,7.73156022]
[1768913863877,6.72835451,129.37,129.34,7.73156022]
[1768913864070,1.51601307,129.37,129.34,7.73156022]
[1768913864270,1.51601307,129.37,129.34,58.57065217]
[1768913864975,1.51601307,129.37,129.34,58.59148637]
[1768913866077,1.51601307,129.37,129.34,50.85992615]
[1768913867681,1.51601307,129.37,129.34,50.86688185]
[1768913870789,6.72476443,129.37,129.34,50.86688185]
[1768913870970,1.51601307,129.37,129.34,50.86688185]
[1768913871174,6.72469201,129.37,129.34,50.86688185]
[1768913872786,1.51601307,129.37,129.34,50.86688185]
[1768913872977,6.72467931,129.37,129.34,50.86688185]
[1768913879401,1.51601307,129.37,129.34,50.86688185]
[1768913879602,6.72367958,129.37,129.34,50.86688185]
[1768913891007,5.20766651,129.37,129.35,3.7771567]
[1768913891307,1.4813795,129.38,129.35,3.7771567]
[1768913893389,1.4813795,129.38,129.36,3.67471884]
[1768913893892,1.4813795,129.39,129.36,3.78224857]
[1768913894092,5.20926097,129.38,129.36,3.78224857]
[1768913894294,1.4813795,129.39,129.36,0.10752973]
[1768913894604,5.20947901,129.38,129.36,0.10752973]
[1768913894907,1.4813795,129.39,129.36,0.10752973]
[1768913895108,5.20947901,129.38,129.36,0.10752973]
[1768913895310,1.4813795,129.39,129.36,0.10752973]
[1768913895492,5.20992779,129.38,129.36,0.10752973]
[1768913895692,1.4813795,129.39,129.36,0.10752973]
[1768913895905,5.20992825,129.38,129.36,0.10752973]
[1768913896100,1.4813795,129.39,129.36,0.10752973]
[1768913896411,5.21047425,129.38,129.36,0.10752973]
[1768913896710,1.4813795,129.39,129.36,50.94662168]
[1768913896914,5.21047526,129.38,129.36,50.94662168]
[1768913897104,1.4813795,129.39,129.36,50.94662168]
[1768913897307,5.21115896,129.38,129.36,50.94662168]
[1768913897500,1.4813795,129.39,129.36,50.94662168]
[1768913897812,6.69253846,129.38,129.36,50.83909195]
[1768913897993,1.4813795,129.38,129.36,50.83909195]
[1768913899207,5.21333846,129.37,129.36,50.83909195]
[1768913903016,6.69471796,129.37,129.36,50.83909195]
[1768913903217,10.3694368,129.37,129.36,31.46033796]
[1768913903717,16.61782463,129.37,129.33,1.51228914]
[1768913903917,5.21333846,129.36,129.33,1.51228914]
[1768913904106,3.67471884,129.34,129.31,63.01228914]
[1768913904295,3.67471884,129.34,129.31,1.51228914]
[1768913908908,3.71047826,129.34,129.31,1.51228914]
[1768913909923,0.03575942,129.34,129.31,1.51228914]
[1768913911424,3.71047826,129.34,129.31,1.51228914]
[1768913914131,0.03575942,129.34,129.31,63.01228914]
[1768913914301,5.20363682,129.36,129.34,1.51228914]
[1768913914502,0.15647799,129.38,129.35,1.51228914]
[1768913914715,5.36060116,129.38,129.35,1.51228914]
[1768913915025,9.03532,129.38,129.35,1.51228914]
[1768913915225,0.17979616,129.37,129.35,1.51228914]